bitfinex/quotes_SOLUSD_20241216
["timestamp","ask_amount","ask_price","bid_price","bid_amount"]
[1734371560885,0.1254,219.14,219.07,20.0]
[1734371561193,16.60532029,219.14,219.07,16.47992029]
[1734371561361,16.60532029,219.14,219.06,16.47992029]
[1734371561987,16.47992029,219.12,219.05,16.47992029]
[1734371562485,16.47992029,219.13,219.06,16.47992029]
[1734371562684,0.12549,219.13,219.07,16.47992029]
[1734371563057,0.1254,219.14,219.09,16.47992029]
[1734371563289,0.1254,219.14,219.1,16.47992029]
[1734371564889,0.1254,219.14,219.09,16.47992029]
[1734371565401,16.47992029,219.12,219.05,16.47992029]
[1734371565596,16.47992029,219.11,219.04,16.47992029]
[1734371565765,16.47992029,219.11,219.03,16.47992029]
[1734371566181,16.47992029,219.1,219.03,16.47992029]
[1734371566381,16.47992029,219.12,219.04,16.47992029]
[1734371566673,16.47992029,219.12,219.05,16.47992029]
[1734371567997,16.47992029,219.12,219.05,26.37472057]
[1734371567998,26.37472057,219.12,219.05,26.37472057]
[1734371568290,6.2571,219.14,219.0,26.37472057]
[1734371568291,26.37472057,219.07,219.0,26.37472057]
[1734371568491,26.37472057,219.06,218.98,26.37472057]
[1734371568671,26.37472057,219.12,218.98,26.37472057]
[1734371568672,26.37472057,219.05,218.98,26.37472057]
[1734371568872,26.37472057,219.06,218.98,26.37472057]
[1734371569875,26.37472057,219.06,218.99,26.37472057]
[1734371570080,0.12549,219.06,218.99,26.37472057]
[1734371570290,23.776884,219.11,218.97,26.37472057]
[1734371570291,0.12549,219.04,218.97,26.37472057]
[1734371571680,26.37472057,219.1,219.03,26.37472057]
[1734371571994,26.37472057,219.11,219.04,26.37472057]
[1734371572177,26.50021057,219.1,219.02,26.37472057]
[1734371572505,26.37472057,219.12,219.04,26.37472057]
[1734371572875,0.12549,219.11,219.05,26.37472057]
[1734371573081,0.12549,219.11,219.04,26.37472057]
[1734371573410,26.37472057,219.11,219.04,26.37472057]
[1734371573608,26.37472057,219.12,219.05,26.37472057]
[1734371573917,0.12549,219.11,219.05,26.37472057]
[1734371575407,0.1254,219.14,219.09,26.37472057]
[1734371576510,0.1254,219.14,219.1,26.37472057]
[1734371577284,0.1254,219.14,219.09,26.37472057]
[1734371577700,26.37472057,219.12,219.05,26.37472057]
[1734371578879,26.37472057,219.13,219.06,26.37472057]
[1734371579088,26.37472057,219.12,219.05,26.37472057]
[1734371579283,26.37472057,219.11,219.04,26.37472057]
[1734371579906,26.37472057,219.12,219.05,26.37472057]
[1734371580605,26.37472057,219.08,219.01,26.37472057]
[1734371580802,23.776884,219.11,219.01,26.37472057]
[1734371580803,26.37472057,219.09,219.01,26.37472057]
[1734371581308,0.12549,219.08,219.01,26.37472057]
[1734371581496,26.50021057,219.08,219.01,26.37472057]
[1734371582508,0.12549,219.08,219.02,26.37472057]
[1734371582894,26.37472057,219.09,219.02,26.37472057]
[1734371583216,0.12549,219.07,218.99,26.37472057]
[1734371583421,26.37472057,219.04,219.0,20.0]
[1734371583710,0.12549,219.03,218.97,26.37472057]
[1734371584014,0.12549,219.03,218.89,6.2989]
[1734371584015,26.37472057,219.0,218.93,26.37472057]
[1734371584317,0.12549,219.0,218.93,26.37472057]
[1734371584707,0.12549,218.98,218.91,26.37472057]
[1734371584894,26.37472057,219.03,218.95,26.37472057]
[1734371585494,26.37472057,219.02,218.95,26.37472057]
[1734371585913,13.10490282,219.08,218.95,26.37472057]
[1734371585914,26.37472057,219.03,218.95,26.37472057]
[1734371587507,26.37472057,219.01,218.94,26.37472057]
[1734371587698,26.37472057,219.01,218.93,26.37472057]
[1734371588087,26.37472057,219.0,218.92,26.37472057]
[1734371588289,0.12549,218.99,218.93,16.50273638]
[1734371588487,23.902374,218.99,218.93,16.50273638]
[1734371588722,0.12549,218.94,218.88,16.50273638]
[1734371588913,16.62822638,218.94,218.87,16.50273638]
[1734371589219,16.50273638,218.95,218.87,16.50273638]
[1734371589418,16.50273638,218.93,218.86,16.50273638]
[1734371589627,16.50273638,218.96,218.89,16.50273638]
[1734371589918,0.12549,218.95,218.89,16.50273638]
[1734371590101,16.50273638,218.96,218.88,16.50273638]
[1734371591419,0.12549,218.93,218.87,16.50273638]
[1734371591812,0.12549,218.91,218.84,36.50273638]
[1734371592011,16.50273638,218.91,218.84,36.50273638]
[1734371592190,16.50273638,218.9,218.84,20.0]
[1734371592390,16.50273638,218.9,218.78,1.6197]
[1734371592391,16.50273638,218.92,218.85,16.50273638]
[1734371592622,16.50273638,218.93,218.86,16.50273638]
[1734371592798,23.04053638,218.97,218.9,16.50273638]
[1734371593422,16.50273638,218.97,218.9,16.50273638]
[1734371593730,16.62822638,218.97,218.9,16.50273638]
[1734371594093,0.12549,218.97,218.91,16.50273638]
[1734371594403,0.12549,218.97,218.9,16.50273638]
[1734371594612,16.62822638,218.97,218.9,16.50273638]
[1734371595003,1.6648,218.98,218.83,144.2374]
[1734371595004,16.50273638,218.96,218.83,137.9]
[1734371595200,1.6648,218.98,218.87,16.50273638]
[1734371595201,16.50273638,218.94,218.87,16.50273638]
[1734371595568,1.6648,218.98,218.84,16.50273638]
[1734371595569,16.50273638,218.92,218.84,16.50273638]
[1734371595723,16.50273638,218.9,218.83,16.50273638]
[1734371596038,16.50273638,218.89,218.81,16.50273638]
[1734371596331,16.50273638,218.86,218.79,16.50273638]
[1734371596798,16.50273638,218.88,218.81,16.50273638]
[1734371597717,16.50273638,218.93,218.85,16.50273638]
[1734371598043,16.50273638,218.93,218.86,16.50273638]
[1734371598194,16.50273638,218.94,218.87,16.50273638]
[1734371598398,16.50273638,218.93,218.86,16.50273638]
[1734371598607,16.50273638,218.94,218.87,16.50273638]
[1734371598807,16.50273638,218.98,218.91,16.50273638]
[1734371599316,6.4553,219.02,218.96,16.50273638]
[1734371599818,16.50273638,219.06,218.99,16.50273638]
[1734371600123,26.38912759,219.05,218.98,26.38912759]
[1734371601041,26.38912759,219.0,218.92,26.38912759]
[1734371601222,26.38912759,218.99,218.91,26.38912759]
[1734371601623,26.38912759,218.97,218.9,26.38912759]
[1734371601830,26.38912759,218.96,218.89,26.38912759]
[1734371602147,26.38912759,218.99,218.92,26.38912759]
[1734371602921,26.38912759,219.0,218.93,26.38912759]
[1734371603842,0.12549,219.0,218.94,26.38912759]
[1734371604039,26.38912759,219.02,218.95,26.38912759]
[1734371604222,26.51461759,219.01,218.94,26.38912759]
[1734371604626,26.38912759,219.02,218.95,26.38912759]
[1734371604837,26.38912759,219.03,218.96,26.38912759]
[1734371605023,0.12549,219.02,218.96,26.38912759]
[1734371605223,26.38912759,219.03,218.96,26.38912759]
[1734371605924,26.38912759,219.02,218.94,26.38912759]
[1734371606237,26.38912759,219.02,218.95,26.38912759]
[1734371606547,26.38912759,219.0,218.93,26.38912759]
[1734371606868,26.38912759,218.99,218.92,26.38912759]
[1734371608157,6.4553,219.08,218.96,26.38912759]
[1734371608158,26.38912759,219.04,218.96,26.38912759]
[1734371608460,32.84442759,219.08,219.01,26.38912759]
[1734371608760,1.5414,219.09,218.95,20.0]
[1734371608761,26.38912759,219.09,219.02,26.38912759]
[1734371608945,26.38912759,219.1,219.03,26.38912759]
[1734371609149,26.38912759,219.12,218.95,137.9]
[1734371609350,26.51452759,219.14,219.07,26.38912759]
[1734371609561,0.1254,219.14,219.09,26.38912759]
[1734371609869,0.1254,219.14,219.11,26.38912759]
[1734371610428,0.1254,219.14,219.09,26.38912759]
[1734371610637,0.1254,219.14,219.1,26.38912759]
[1734371611236,0.1254,219.14,219.12,26.38912759]
[1734371611650,0.1254,219.14,219.07,20.0]
[1734371611651,0.1254,219.14,219.13,26.38912759]
[1734371611842,26.38912759,219.24,219.13,26.38912759]
[1734371612048,26.38912759,219.24,219.16,26.38912759]
[1734371612530,0.12549,219.2,219.14,26.38912759]
[1734371612732,26.38912759,219.19,219.13,26.38912759]
[1734371612957,26.38912759,219.19,219.12,26.38912759]
[1734371613141,0.12549,219.18,219.12,26.38912759]
[1734371613337,0.12549,219.22,219.17,26.38912759]
[1734371613562,26.38912759,219.24,219.17,26.38912759]
[1734371613763,26.38912759,219.22,219.15,26.38912759]
[1734371614260,32.91972759,219.26,219.19,26.38912759]
[1734371614633,26.38912759,219.28,219.21,26.38912759]
[1734371614836,26.38912759,219.3,219.23,26.38912759]
[1734371615641,0.12549,219.27,219.21,26.38912759]
[1734371616056,26.38912759,219.28,219.21,26.38912759]
[1734371616246,7.7896,219.32,219.12,38.59142427]
[1734371616247,26.38912759,219.29,219.22,26.38912759]
[1734371616448,26.38912759,219.3,219.23,26.38912759]
[1734371616657,6.195,219.32,219.27,26.38912759]
[1734371616872,26.38912759,219.34,219.27,26.38912759]
[1734371617051,26.92793809,219.35,219.28,26.38912759]
[1734371617250,0.5388105,219.35,219.29,26.38912759]
[1734371617451,0.5388105,219.35,219.3,26.38912759]
[1734371617635,0.5388105,219.35,219.29,26.38912759]
[1734371617838,26.38912759,219.34,219.27,26.38912759]
[1734371618040,26.38912759,219.31,219.24,26.38912759]
[1734371618276,0.5388105,219.35,219.19,26.38912759]
[1734371618277,26.38912759,219.26,219.19,26.38912759]
[1734371618457,26.38912759,219.27,219.2,26.38912759]
[1734371618652,26.38912759,219.28,219.21,26.38912759]
[1734371618868,26.38912759,219.3,219.23,26.38912759]
[1734371619169,23.776884,219.29,219.24,26.38912759]
[1734371619466,0.5388105,219.35,219.23,26.38912759]
[1734371619467,50.16601159,219.3,219.23,26.38912759]
[1734371619651,0.12549,219.29,219.23,26.38912759]
[1734371619836,23.776884,219.31,219.27,26.38912759]
[1734371620044,26.38912759,219.33,219.26,26.38912759]
[1734371620256,26.38912759,219.32,219.25,26.38912759]
[1734371620585,26.51461759,219.3,219.23,26.38912759]
[1734371621146,0.12549,219.28,219.23,26.38912759]
[1734371621768,23.776884,219.31,219.25,26.38912759]
[1734371621973,0.12549,219.3,219.25,26.38912759]
[1734371622280,0.12549,219.3,219.24,26.38912759]
[1734371622492,0.12549,219.28,219.23,26.38912759]
[1734371622986,0.12549,219.28,219.24,26.38912759]
[1734371623188,23.776884,219.3,219.24,26.38912759]
[1734371623682,50.16601159,219.3,219.23,26.38912759]
[1734371624459,50.16601159,219.3,219.16,6.2721]
[1734371624460,23.776884,219.3,219.24,26.38912759]
[1734371624755,23.776884,219.33,219.27,26.38912759]
[1734371624955,23.776884,219.33,219.25,26.38912759]
[1734371624956,26.38912759,219.32,219.25,26.38912759]
[1734371625255,0.5388105,219.35,219.16,144.1721]
[1734371625256,23.776884,219.29,219.23,26.38912759]
[1734371626088,23.776884,219.29,219.24,26.38912759]
[1734371626659,0.12549,219.29,219.23,26.38912759]
[1734371627181,23.902374,219.26,219.2,26.38912759]
[1734371627488,26.38912759,219.24,219.12,1.518]
[1734371627655,23.902374,219.26,219.12,1.518]
[1734371627656,23.902374,219.18,219.12,26.38912759]
[1734371627861,23.902374,219.18,219.13,26.38912759]
[1734371628054,0.12549,219.18,219.14,26.38912759]
[1734371628273,23.902374,219.18,219.11,26.38912759]
[1734371628474,23.902374,219.18,219.13,26.38912759]
[1734371628784,0.12549,219.18,219.12,26.38912759]
[1734371629168,26.51461759,219.18,219.11,26.38912759]
[1734371629491,0.12549,219.16,219.1,26.38912759]
[1734371629655,0.12549,219.16,219.11,26.38912759]
[1734371629853,0.12549,219.16,219.08,26.38912759]
[1734371629854,26.51461759,219.16,219.08,26.38912759]
[1734371630054,26.51461759,219.14,219.07,26.38912759]
[1734371630280,23.776884,219.13,219.07,26.38912759]
[1734371630475,23.776884,219.14,219.08,26.38912759]
[1734371630651,23.776884,219.15,219.08,26.38912759]
[1734371631051,26.38912759,219.14,219.06,26.38912759]
[1734371631255,23.776884,219.13,219.06,26.38912759]
[1734371631489,50.16601159,219.13,219.06,26.38912759]
[1734371632057,23.776884,219.13,219.06,26.38912759]
[1734371632686,23.776884,219.13,219.07,26.38912759]
[1734371632884,23.776884,219.14,219.08,26.38912759]
[1734371633068,50.16601159,219.16,219.08,26.38912759]
[1734371633458,23.776884,219.14,219.07,26.38912759]
[1734371634291,26.51461759,219.13,219.06,26.38912759]
[1734371634461,0.12549,219.11,219.06,26.38912759]
[1734371634863,0.12549,219.12,219.06,26.38912759]
[1734371635085,0.12549,219.1,219.04,26.38912759]
[1734371635291,0.12549,219.08,219.02,26.38912759]
[1734371636158,26.51461759,219.08,219.0,26.38912759]
[1734371636673,0.12549,219.06,219.0,26.38912759]
[1734371638860,0.12549,219.06,218.96,1.5536]
[1734371639064,0.12549,219.06,219.0,26.38912759]
[1734371640886,26.38912759,219.12,219.04,26.38912759]
[1734371641292,26.38912759,219.12,219.05,26.38912759]
[1734371641668,26.38912759,219.13,219.06,26.38912759]
[1734371641867,6.6425,219.14,218.96,150.138389]
[1734371641868,26.38912759,219.1,219.02,26.38912759]
[1734371642284,26.38912759,219.1,218.96,1.5536]
[1734371642285,26.38912759,219.12,219.05,26.38912759]
[1734371642460,26.38912759,219.11,219.04,26.38912759]
[1734371642664,26.38912759,219.11,219.03,26.38912759]
[1734371642866,23.776884,219.08,219.01,26.38912759]
[1734371643067,23.776884,219.08,219.02,26.38912759]
[1734371643268,50.16601159,219.08,219.01,26.38912759]
[1734371643892,50.16601159,219.08,218.92,137.9]
[1734371643893,23.776884,219.04,218.97,26.38912759]
[1734371644195,0.12549,219.03,218.97,26.38912759]
[1734371644373,0.12549,219.03,218.96,26.38912759]
[1734371645502,23.776884,219.04,218.98,26.38912759]
[1734371645797,0.12549,219.05,218.99,26.38912759]
[1734371647698,0.12549,219.05,218.98,26.38912759]
[1734371649176,0.12549,219.05,218.92,0.6848646]
[1734371649373,0.12549,219.05,218.98,26.38912759]
[1734371650080,0.12549,219.05,218.99,26.38912759]
[1734371650285,0.12549,219.05,218.99,16.49211921]
[1734371650487,0.12549,219.05,218.98,16.49211921]
[1734371650983,0.12549,219.05,218.99,16.49211921]
[1734371651187,0.12549,219.05,218.98,16.49211921]
[1734371651188,16.61760921,219.05,218.98,16.49211921]
[1734371651501,40.26900321,219.04,218.96,16.49211921]
[1734371652480,40.26900321,219.04,218.95,16.49211921]
[1734371655009,0.12549,219.03,218.95,16.49211921]
[1734371655811,0.12549,218.99,218.93,16.49211921]
[1734371655978,23.902374,218.99,218.93,16.49211921]
[1734371657111,0.12549,218.93,218.79,1.5526]
[1734371657287,23.902374,218.93,218.85,16.49211921]
[1734371657624,16.49211921,218.9,218.83,16.49211921]
[1734371657787,23.776884,218.89,218.83,16.49211921]
[1734371657989,23.776884,218.89,218.79,1.5526]
[1734371658178,23.776884,218.89,218.82,16.49211921]
[1734371658487,23.776884,218.89,218.84,16.49211921]
[1734371658691,38.76900321,218.91,218.84,16.49211921]
[1734371658898,23.776884,218.91,218.85,16.49211921]
[1734371659218,1.6384,218.97,218.85,16.49211921]
[1734371659219,0.12549,218.9,218.85,16.49211921]
[1734371659622,23.776884,218.92,218.85,16.49211921]
[1734371659623,0.12549,218.91,218.85,16.49211921]
[1734371659823,16.49211921,218.95,218.79,18.04471921]
[1734371660118,1.6384,218.97,218.91,16.49211921]
[1734371660314,0.12549,218.96,218.91,16.49211921]
[1734371660618,0.12549,218.96,218.89,16.49211921]
[1734371661332,23.902374,218.96,218.89,16.49211921]
[1734371661499,23.902374,218.94,218.87,16.49211921]
[1734371663101,23.902374,218.94,218.88,16.49211921]
[1734371664507,16.61760921,218.94,218.86,16.49211921]
[1734371664715,23.776884,218.91,218.84,16.49211921]
[1734371666632,23.776884,218.93,218.88,16.49211921]
[1734371666934,16.49211921,218.95,218.8,0.68533605]
[1734371666935,23.776884,218.95,218.89,16.49211921]
[1734371667109,40.26900321,218.95,218.87,16.49211921]
[1734371667727,40.26900321,218.95,218.88,16.49211921]
[1734371667930,40.26900321,218.96,218.88,16.49211921]
[1734371668236,0.12549,218.95,218.88,16.49211921]
[1734371668599,0.12549,218.95,218.9,16.49211921]
[1734371668906,24.63551921,219.02,218.94,16.49211921]
[1734371669110,16.49211921,219.01,218.94,16.49211921]
[1734371669419,0.12549,219.0,218.94,16.49211921]
[1734371669817,16.49211921,219.01,218.94,16.49211921]
[1734371670019,16.49211921,219.01,218.93,16.49211921]
[1734371670217,16.49211921,219.01,218.84,0.68505798]
[1734371670218,23.902374,219.0,218.84,0.68505798]
[1734371670420,8.1434,219.02,218.97,16.49211921]
[1734371670607,6.5471,219.02,218.98,16.49211921]
[1734371670806,16.49211921,219.06,218.99,16.49211921]
[1734371671123,0.12549,219.05,218.99,16.49211921]
[1734371671630,18.04631921,219.07,219.0,16.49211921]
[1734371672508,0.12549,219.06,219.0,16.49211921]
[1734371672707,0.12549,219.06,219.01,16.49211921]
[1734371673324,23.902374,219.06,219.0,16.49211921]
[1734371673825,16.49211921,219.1,219.04,16.49211921]
[1734371674028,16.49211921,219.11,219.05,16.49211921]
[1734371674202,18.11021921,219.12,219.05,16.49211921]
[1734371674536,16.49211921,219.11,219.04,16.49211921]
[1734371675100,16.61760921,219.1,219.03,16.49211921]
[1734371675336,0.12549,219.07,219.01,16.49211921]
[1734371675628,23.902374,219.07,219.01,16.49211921]
[1734371676229,0.12549,219.07,219.01,16.49211921]
[1734371677033,23.776884,219.06,219.0,16.49211921]
[1734371677999,26.38689856,219.08,219.01,26.38689856]
[1734371678241,23.776884,219.07,219.02,26.38689856]
[1734371678399,23.776884,219.11,219.04,26.38689856]
[1734371678604,23.776884,219.11,219.05,26.38689856]
[1734371678901,1.6181,219.12,219.06,26.38689856]
[1734371679110,32.68399856,219.13,219.08,26.38689856]
[1734371679111,6.2971,219.13,219.08,26.38689856]
[1734371679303,26.38689856,219.15,219.08,26.38689856]
[1734371679744,28.00259856,219.17,219.1,26.38689856]
[1734371680111,26.38689856,219.16,219.09,26.38689856]
[1734371681201,0.12549,219.14,219.1,26.38689856]
[1734371681409,0.12549,219.14,219.01,27.07149081]
[1734371681410,23.776884,219.17,219.11,26.38689856]
[1734371681740,1.6342,219.22,219.16,26.38689856]
[1734371681949,6.1429,219.23,219.17,26.38689856]
[1734371682145,6.1429,219.23,219.16,26.38689856]
[1734371682305,0.12549,219.22,219.16,26.38689856]
[1734371682756,0.12549,219.22,219.17,26.38689856]
[1734371683157,6.1429,219.23,219.16,26.38689856]
[1734371683439,32.52979856,219.23,219.16,26.38689856]
[1734371683914,0.12549,219.22,219.15,26.38689856]
[1734371684314,32.52979856,219.23,219.16,26.38689856]
[1734371684520,32.52979856,219.23,219.15,26.38689856]
[1734371684721,0.12549,219.22,219.15,26.38689856]
[1734371685409,23.902374,219.22,219.15,26.38689856]
[1734371686445,26.38689856,219.2,219.13,26.38689856]
[1734371686628,23.776884,219.17,219.11,26.38689856]
[1734371686940,23.776884,219.17,219.12,26.38689856]
[1734371687247,23.776884,219.18,219.12,26.38689856]
[1734371687626,23.776884,219.19,219.12,26.33138399]
[1734371687810,50.16378256,219.19,219.12,26.33138399]
[1734371688010,23.776884,219.17,219.11,26.38689856]
[1734371688742,23.776884,219.18,219.12,26.38689856]
[1734371689110,26.38689856,219.17,219.09,26.38689856]
[1734371689315,26.38689856,219.14,219.07,26.38689856]
[1734371690035,0.12549,219.13,219.06,26.38689856]
[1734371690349,0.12549,219.13,219.07,26.38689856]
[1734371690858,0.12549,219.14,219.08,26.38689856]
[1734371691146,23.902374,219.14,219.08,26.38689856]
[1734371692758,26.38689856,219.2,219.13,26.38689856]
[1734371692962,0.12549,219.19,219.13,26.38689856]
[1734371693761,0.12549,219.18,219.12,26.38689856]
[1734371694129,23.902374,219.18,219.12,26.38689856]
[1734371695321,0.12549,219.18,219.13,26.38689856]
[1734371695524,23.776884,219.19,219.13,26.38689856]
[1734371696163,26.38689856,219.2,219.13,26.38689856]
[1734371698199,36.47185792,219.2,219.13,16.47185792]
[1734371699184,0.12549,219.19,219.13,16.47185792]
[1734371699869,0.12549,219.17,219.1,16.47185792]
[1734371700261,0.12549,219.17,219.11,16.47185792]
[1734371700441,16.59734792,219.17,219.07,20.0]
[1734371700648,0.12549,219.15,219.1,16.47185792]
[1734371700865,0.12549,219.15,219.11,16.47185792]
[1734371701181,0.12549,219.16,219.1,16.47185792]
[1734371702050,23.776884,219.18,219.12,16.47185792]
[1734371702559,0.12549,219.17,219.12,16.47185792]
[1734371703175,23.776884,219.2,219.14,16.47185792]
[1734371703365,16.47185792,219.22,219.15,16.47185792]
[1734371703768,16.47185792,219.26,219.18,16.47185792]
[1734371703969,16.47185792,219.25,219.18,16.47185792]
[1734371704573,16.47185792,219.24,219.17,16.47185792]
[1734371704878,16.47185792,219.22,219.15,16.47185792]
[1734371705199,16.47185792,219.2,219.13,16.47185792]
[1734371705372,16.47185792,219.19,219.12,16.47185792]
[1734371706055,16.47185792,219.2,219.13,16.47185792]
[1734371706251,23.776884,219.2,219.15,16.47185792]
[1734371706469,16.47185792,219.24,219.17,16.47185792]
[1734371706672,16.47185792,219.24,219.16,16.47185792]
[1734371706881,0.12549,219.22,219.16,16.47185792]
[1734371707082,6.5846,219.28,219.16,16.47185792]
[1734371707083,16.47185792,219.24,219.16,16.47185792]
[1734371707287,16.47185792,219.26,219.19,16.47185792]
[1734371707792,23.902374,219.25,219.19,16.47185792]
[1734371708086,40.37423192,219.25,219.17,16.47185792]
[1734371708494,16.59734792,219.23,219.16,16.47185792]
[1734371708790,0.12549,219.21,219.14,16.47185792]
[1734371709161,16.59734792,219.2,219.05,6.441]
[1734371709388,16.47185792,219.15,219.08,16.47185792]
[1734371709687,16.59734792,219.14,219.06,16.47185792]
[1734371709874,6.0175,219.17,219.06,16.47185792]
[1734371709875,40.24874192,219.13,219.06,16.47185792]
[1734371710086,16.47185792,219.12,219.05,16.47185792]
[1734371710392,16.47185792,219.12,219.01,137.9]
[1734371710393,16.47185792,219.09,219.02,16.47185792]
[1734371711185,0.12549,219.09,219.03,16.47185792]
[1734371711387,0.12549,219.09,219.04,16.47185792]
[1734371711572,16.47185792,219.12,219.04,16.47185792]
[1734371711770,16.47185792,219.09,219.02,16.47185792]
[1734371711971,26.37996509,219.09,219.01,26.37996509]
[1734371712295,0.12549,219.01,218.83,10.0]
[1734371712461,7.9888,219.06,218.82,26.37996509]
[1734371712462,26.37996509,218.9,218.82,26.37996509]
[1734371712788,26.37996509,218.86,218.79,26.37996509]
[1734371713173,26.37996509,218.82,218.76,5.0]
[1734371713377,26.37996509,218.79,218.71,26.37996509]
[1734371713587,26.37996509,218.8,218.72,26.37996509]
[1734371713765,26.37996509,218.73,218.59,138.4388105]
[1734371713971,26.37996509,218.69,218.61,26.37996509]
[1734371714193,26.37996509,218.67,218.59,0.5388105]
[1734371714394,26.37996509,218.67,218.6,26.37996509]
[1734371714597,26.37996509,218.79,218.6,26.37996509]
[1734371714598,26.37996509,218.68,218.6,26.37996509]
[1734371714773,26.37996509,218.67,218.6,26.37996509]
[1734371714973,26.37996509,218.7,218.62,26.37996509]
[1734371715602,26.37996509,218.72,218.64,26.37996509]
[1734371715801,26.37996509,218.76,218.69,26.37996509]
[1734371715984,26.37996509,218.77,218.7,26.37996509]
[1734371716473,26.37996509,218.76,218.69,26.37996509]
[1734371716668,26.37996509,218.75,218.68,26.37996509]
[1734371716991,26.37996509,218.8,218.73,26.37996509]
[1734371719282,26.37996509,218.77,218.71,26.37996509]
[1734371719789,26.37996509,218.78,218.71,26.37996509]
[1734371719996,26.37996509,218.78,218.72,26.37996509]
[1734371720482,26.37996509,218.81,218.75,26.37996509]
[1734371720793,26.37996509,218.79,218.72,27.06549793]
[1734371721094,26.37996509,218.8,218.73,26.37996509]
[1734371721684,26.37996509,218.81,218.74,27.06546195]
[1734371721879,26.37996509,218.82,218.76,26.37996509]
[1734371722086,26.37996509,218.84,218.77,26.37996509]
[1734371722802,26.37996509,218.86,218.8,26.37996509]
[1734371722991,26.37996509,218.87,218.8,26.37996509]
[1734371723383,26.37996509,218.86,218.8,26.37996509]
[1734371723789,26.37996509,218.84,218.8,20.0]
[1734371723992,26.37996509,218.85,218.8,20.0]
[1734371724300,26.37996509,218.87,218.8,46.37996509]
[1734371724475,26.37996509,218.88,218.81,26.37996509]
[1734371724896,26.37996509,218.86,218.79,46.37996509]
[1734371725097,26.37996509,218.84,218.79,20.0]
[1734371725398,26.37996509,218.85,218.8,20.0]
[1734371725903,26.37996509,218.87,218.8,46.37996509]
[1734371726117,26.37996509,218.86,218.8,46.37996509]
[1734371726316,26.37996509,218.86,218.79,26.37996509]
[1734371726922,8.94736428,219.02,218.77,20.68525889]
[1734371726923,26.37996509,218.9,218.83,26.37996509]
[1734371727078,26.37996509,218.91,218.85,26.37996509]
[1734371727276,26.37996509,218.93,218.86,26.37996509]
[1734371727478,26.37996509,218.94,218.87,26.37996509]
[1734371727994,0.12549,218.99,218.87,26.37996509]
[1734371728206,26.37996509,218.93,218.86,26.37996509]
[1734371728398,26.37996509,218.89,218.85,20.0]
[1734371728776,0.12549,218.85,218.69,156.163034]
[1734371728976,0.12549,218.85,218.66,5.0]
[1734371728977,26.37996509,218.75,218.68,26.37996509]
[1734371729179,0.12549,218.85,218.66,137.9]
[1734371729180,26.37996509,218.74,218.66,26.37996509]
[1734371729598,26.37996509,218.7,218.62,26.37996509]
[1734371729881,0.12549,218.78,218.67,26.37996509]
[1734371730081,0.12549,218.78,218.68,26.37996509]
[1734371730082,26.37996509,218.75,218.68,26.37996509]
[1734371730510,26.37996509,218.78,218.7,26.37996509]
[1734371730806,26.37996509,218.79,218.71,26.37996509]
[1734371731581,26.37996509,218.79,218.72,26.37996509]
[1734371731781,26.37996509,218.82,218.75,26.37996509]
[1734371732277,26.37996509,218.82,218.74,26.37996509]
[1734371732689,26.37996509,218.82,218.73,0.68554359]
[1734371732690,26.37996509,218.82,218.75,26.37996509]
[1734371733113,26.37996509,218.83,218.76,26.37996509]
[1734371733303,32.43796509,218.9,218.78,26.37996509]
[1734371733304,6.058,218.9,218.78,26.37996509]
[1734371733581,26.37996509,218.89,218.82,26.37996509]
[1734371734514,26.37996509,218.85,218.78,26.37996509]
[1734371734812,26.37996509,218.82,218.78,20.0]
[1734371735191,0.12549,218.82,218.75,26.37996509]
[1734371735486,26.50545509,218.82,218.75,26.37996509]
[1734371735814,0.12549,218.82,218.75,26.37996509]
[1734371736604,26.37996509,218.8,218.76,20.0]
[1734371736910,26.37996509,218.77,218.7,26.37996509]
[1734371737286,26.37996509,218.79,218.72,26.37996509]
[1734371737496,23.776884,218.89,218.72,26.37996509]
[1734371737681,23.776884,218.89,218.66,138.5855694]
[1734371737682,26.37996509,218.8,218.67,0.68555964]
[1734371737886,26.37996509,218.81,218.74,26.37996509]
[1734371738616,26.37996509,218.84,218.77,26.37996509]
[1734371739286,26.37996509,218.86,218.79,26.37996509]
[1734371739697,26.37996509,218.85,218.78,26.37996509]
[1734371740411,26.37996509,218.88,218.81,26.37996509]
[1734371740631,26.37996509,218.89,218.82,26.37996509]
[1734371740801,6.0972,218.98,218.87,26.37996509]
[1734371741005,26.37996509,218.94,218.88,26.37996509]
[1734371741230,26.37996509,218.95,218.88,26.37996509]
[1734371741414,26.37996509,218.93,218.86,26.37996509]
[1734371742096,26.37996509,218.93,218.87,26.37996509]
[1734371742097,0.12549,218.93,218.87,26.37996509]
[1734371742415,0.12549,218.93,218.88,26.37996509]
[1734371743701,26.37996509,218.94,218.88,26.37996509]
[1734371744023,0.12549,218.95,218.89,26.37996509]